fUSD/lending_fUSD_20250629
["ID","MTS","AMOUNT","RATE_DAILY","PERIOD"]
[368527028,1751195486145,-738.46,0.00029041,3]
[368527029,1751195486154,-1388.19,0.00029041,3]
[368527030,1751195486164,-954.67,0.00029041,3]
[368527031,1751195486174,-843.616844,0.00029041,3]
[368527032,1751195486183,-490.0,0.00029041,3]
[368527033,1751195486193,-292.08260211,0.00029041,3]
[368527034,1751195486202,-490.0,0.00029041,3]
[368527035,1751195486212,-490.0,0.00029041,3]
[368527036,1751195486221,-729.8,0.00029041,3]
[368527037,1751195486230,-292.491065,0.00029041,3]
[368527038,1751195486240,-717.63,0.00029041,3]
[368527039,1751195486249,-618.02,0.00029041,3]
[368527040,1751195486259,-490.0,0.00029041,3]
[368527041,1751195486268,-779.17,0.00029041,3]
[368527042,1751195486278,-490.49,0.00029041,3]
[368527043,1751195486288,-490.0,0.00029041,3]
[368527044,1751195486298,-490.0,0.00029041,3]
[368527045,1751195486308,-490.46,0.00029041,3]
[368527046,1751195486318,-490.0,0.00029041,3]
[368527047,1751195486332,-1183.749927,0.00029041,3]
[368527048,1751195486341,-701.72,0.00029041,3]
[368527049,1751195486351,-490.0,0.00029041,3]
[368527050,1751195486361,-490.0,0.00029041,3]
[368527051,1751195486370,-1063.67,0.00029041,3]
[368527052,1751195486380,-663.95,0.00029041,3]
[368527053,1751195486389,-862.32,0.00029041,3]
[368527054,1751195486398,-1237.98,0.00029041,3]
[368527055,1751195486407,-490.0,0.00029041,3]
[368527056,1751195486417,-827.18,0.00029041,3]
[368527057,1751195486426,-490.0,0.00029041,3]
[368527058,1751195486435,-490.0,0.00029041,3]
[368527059,1751195486443,-823.41,0.00029041,3]
[368527060,1751195486452,-490.0,0.00029041,3]
[368527061,1751195486461,-668.76,0.00029041,3]
[368527062,1751195486471,-547.47,0.00029041,3]
[368527063,1751195486480,-748.67,0.00029041,3]
[368527064,1751195486490,-490.0,0.00029041,3]
[368527065,1751195486499,-490.0,0.00029041,3]
[368527066,1751195486510,-1401.904447,0.00029041,3]
[368527067,1751195486519,-490.0,0.00029041,3]
[368527068,1751195486528,-588.25,0.00029041,3]
[368527069,1751195486539,-490.0,0.00029041,3]
[368527070,1751195486548,-1344.91,0.00029041,3]
[368527071,1751195486557,-490.0,0.00029041,3]
[368527072,1751195486566,-688.18,0.00029041,3]
[368527073,1751195486575,-490.0,0.00029041,3]
[368527074,1751195486584,-918.01,0.00029041,3]
[368527075,1751195486593,-490.0,0.00029041,3]
[368527076,1751195486603,-300.0,0.00029041,3]
[368527077,1751195486612,-606.16,0.00029041,3]
[368527078,1751195486621,-504.36,0.00029041,3]
[368527079,1751195486631,-490.0,0.00029041,3]
[368527080,1751195486641,-860.61,0.00029041,3]
[368527081,1751195486650,-490.0,0.00029041,3]
[368527082,1751195486659,-490.0,0.00029041,3]
[368527083,1751195486668,-492.65,0.00029041,3]
[368527084,1751195486678,-1029.14,0.00029041,3]
[368527085,1751195486687,-490.95,0.00029041,3]
[368527086,1751195486696,-490.0,0.00029041,3]
[368527087,1751195486705,-490.0,0.00029041,3]
[368527088,1751195486715,-490.0,0.00029041,3]
[368527089,1751195486724,-879.43,0.00029041,3]
[368527090,1751195486735,-576.42,0.00029041,3]
[368527091,1751195486745,-490.0,0.00029041,3]
[368527092,1751195486754,-490.0,0.00029041,3]
[368527093,1751195486764,-593.25,0.00029041,3]
[368527094,1751195486773,-537.32,0.00029041,3]
[368527095,1751195486782,-1231.36,0.00029041,3]
[368527096,1751195486791,-1062.64,0.00029041,3]
[368527097,1751195486800,-603.18,0.00029041,3]
[368527098,1751195486810,-587.36,0.00029041,3]
[368527099,1751195486820,-576.03,0.00029041,3]
[368527100,1751195486831,-490.0,0.00029041,3]
[368527101,1751195486840,-490.0,0.00029041,3]
[368527102,1751195486851,-618.5,0.00029041,3]
[368527103,1751195486860,-996.14,0.00029041,3]
[368527104,1751195486870,-588.38,0.00029041,3]
[368527105,1751195486880,-559.62,0.00029041,3]
[368527106,1751195486890,-593.04,0.00029041,3]
[368527107,1751195486899,-543.61,0.00029041,3]
[368527108,1751195486908,-594.32,0.00029041,3]
[368527109,1751195486917,-815.71,0.00029041,3]
[368527110,1751195486926,-490.0,0.00029041,3]
[368527111,1751195486936,-490.0,0.00029041,3]
[368527112,1751195486946,-490.0,0.00029041,3]
[368527113,1751195486956,-490.0,0.00029041,3]
[368527114,1751195486966,-496.77,0.00029041,3]
[368527115,1751195486976,-490.0,0.00029041,3]
[368527116,1751195486986,-630.45,0.00029041,3]
[368527117,1751195486995,-490.0,0.00029041,3]
[368527118,1751195487004,-612.62,0.00029041,3]
[368527119,1751195487014,-490.0,0.00029041,3]
[368527120,1751195487023,-490.0,0.00029041,3]
[368527121,1751195487033,-734.99,0.00029041,3]
[368527122,1751195487042,-500.57079904,0.00029041,3]
[368527123,1751195487052,-941.86,0.00029041,3]
[368527124,1751195487061,-606.81,0.00029041,3]
[368527125,1751195487071,-490.0,0.00029041,3]
[368527126,1751195487080,-490.0,0.00029041,3]
[368527127,1751195487090,-490.0,0.00029041,3]
[368527128,1751195487099,-1147.39,0.00029041,3]
[368527129,1751195487108,-534.75,0.00029041,3]
[368527130,1751195487117,-490.0,0.00029041,3]
[368527131,1751195487127,-768.88,0.00029041,3]
[368527132,1751195487136,-501.48,0.00029041,3]
[368527133,1751195487145,-765.22,0.00029041,3]
[368527134,1751195487154,-490.0,0.00029041,3]
[368527135,1751195487163,-490.0,0.00029041,3]
[368527136,1751195487172,-624.11,0.00029041,3]
[368527137,1751195487182,-490.0,0.00029041,3]
[368527138,1751195487191,-518.02,0.00029041,3]
[368527139,1751195487200,-490.0,0.00029041,3]
[368527140,1751195487210,-490.0,0.00029041,3]
[368527141,1751195487219,-691.65,0.00029041,3]
[368527142,1751195487228,-490.0,0.00029041,3]
[368527143,1751195487237,-490.0,0.00029041,3]
[368527144,1751195487246,-1554.34,0.00029041,3]
[368527145,1751195487256,-536.67,0.00029041,3]
[368527146,1751195487265,-490.0,0.00029041,3]
[368527147,1751195487274,-490.0,0.00029041,3]
[368527148,1751195487283,-1504.15,0.00029041,3]
[368527149,1751195487292,-708.27,0.00029041,3]
[368527150,1751195487301,-490.0,0.00029041,3]
[368527151,1751195487311,-490.0,0.00029041,3]
[368527152,1751195487320,-490.0,0.00029041,3]
[368527153,1751195487332,-516.87,0.00029041,3]
[368527154,1751195487341,-490.0,0.00029041,3]
[368527155,1751195487350,-490.0,0.00029041,3]
[368527156,1751195487359,-490.0,0.00029041,3]
[368527157,1751195487369,-490.0,0.00029041,3]
[368527158,1751195487378,-490.0,0.00029041,3]
[368527159,1751195487388,-604.89,0.00029041,3]
[368527160,1751195487397,-490.0,0.00029041,3]
[368527161,1751195487406,-1638.76,0.00029041,3]
[368527162,1751195487416,-490.0,0.00029041,3]
[368527163,1751195487426,-590.89,0.00029041,3]
[368527164,1751195487435,-1217.95,0.00029041,3]
[368527165,1751195487444,-490.0,0.00029041,3]
[368527166,1751195487453,-490.0,0.00029041,3]
[368527167,1751195487463,-528.4,0.00029041,3]
[368527168,1751195487472,-498.25,0.00029041,3]
[368527169,1751195487482,-1047.55,0.00029041,3]
[368527170,1751195487492,-932.64,0.00029041,3]
[368527171,1751195487501,-1535.93,0.00029041,3]
[368527172,1751195487510,-490.0,0.00029041,3]
[368527173,1751195487520,-1410.37,0.00029041,3]
[368527174,1751195487530,-857.63,0.00029041,3]
[368527175,1751195487539,-490.0,0.00029041,3]
[368527176,1751195487550,-490.0,0.00029041,3]
[368527177,1751195487560,-764.97,0.00029041,3]
[368527178,1751195487570,-1226.51,0.00029041,3]
[368527179,1751195487579,-719.95,0.00029041,3]
[368527180,1751195487590,-979.74,0.00029041,3]
[368527181,1751195487600,-991.19,0.00029041,3]
[368527182,1751195487610,-490.0,0.00029041,3]
[368527183,1751195487619,-892.18,0.00029041,3]
[368527184,1751195487629,-490.0,0.00029041,3]
[368527185,1751195487638,-490.0,0.00029041,3]
[368527186,1751195487648,-490.0,0.00029041,3]
[368527187,1751195487657,-490.0,0.00029041,3]
[368527188,1751195487667,-523.71,0.00029041,3]
[368527189,1751195487676,-490.0,0.00029041,3]
[368527190,1751195487685,-490.0,0.00029041,3]
[368527191,1751195487695,-490.0,0.00029041,3]
[368527192,1751195487704,-1618.13,0.00029041,3]
[368527193,1751195487713,-616.38576534,0.00029041,3]
[368527194,1751195487723,-1261.23,0.00029041,3]
[368527195,1751195487732,-662.39,0.00029041,3]
[368527196,1751195487742,-533.43,0.00029041,3]
[368527197,1751195487752,-580.01216629,0.00029041,3]
[368527198,1751195487761,-851.98,0.00029041,3]
[368527199,1751195487771,-3244.07,0.00029041,3]
[368527200,1751195487780,-490.0,0.00029041,3]
[368527201,1751195487790,-490.0,0.00029041,3]
[368527202,1751195487799,-490.0,0.00029041,3]
[368527203,1751195487809,-490.0,0.00029041,3]
[368527204,1751195487818,-490.0,0.00029041,3]
[368527205,1751195487828,-490.0,0.00029041,3]
[368527206,1751195487837,-650.15,0.00029041,3]
[368527207,1751195487846,-643.65,0.00029041,3]
[368527208,1751195487855,-588.08,0.00029041,3]
[368527209,1751195487865,-793.06,0.00029041,3]
[368527210,1751195487874,-1494.92,0.00029041,3]
[368527211,1751195487883,-11062.2,0.00029041,3]
[368527212,1751195487893,-650.49,0.00029041,3]
[368527213,1751195487903,-1369.42,0.00029041,3]
[368527214,1751195487913,-490.0,0.00029041,3]
[368527215,1751195487925,-490.0,0.00029041,3]
[368527216,1751195487934,-490.0,0.00029041,3]
[368527217,1751195487943,-992.98,0.00029041,3]
[368527218,1751195487953,-490.0,0.00029041,3]
[368527219,1751195487963,-2865.08,0.00029041,3]
[368527220,1751195487972,-490.0,0.00029041,3]
[368527221,1751195487982,-1255.19,0.00029041,3]
[368527222,1751195487992,-1048.51,0.00029041,3]
[368527223,1751195488003,-490.0,0.00029041,3]
[368527224,1751195488012,-895.06,0.00029041,3]
[368527225,1751195488022,-490.0,0.00029041,3]
[368527226,1751195488032,-1140.15,0.00029041,3]
[368527227,1751195488042,-1098.84,0.00029041,3]
[368527228,1751195488052,-689.9,0.00029041,3]
[368527229,1751195488062,-1475.7,0.00029041,3]
[368527230,1751195488072,-509.89,0.00029041,3]
[368527231,1751195488083,-846.61,0.00029041,3]
[368527232,1751195488093,-490.0,0.00029041,3]
[368527233,1751195488103,-800.75,0.00029041,3]
[368527234,1751195488113,-490.0,0.00029041,3]
[368527235,1751195488122,-1724.34,0.00029041,3]
[368527236,1751195488132,-839.61,0.00029041,3]
[368527237,1751195488142,-1838.21,0.00029041,3]
[368527238,1751195488151,-468.8216896,0.00029041,3]
[368527239,1751195488161,-490.0,0.00029041,3]
[368527240,1751195488171,-1420.15,0.00029041,3]
[368527241,1751195488181,-511.65,0.00029041,3]
[368527242,1751195488190,-1365.53,0.00029041,3]
[368527243,1751195488200,-1126.33,0.00029041,3]
[368527244,1751195488209,-490.0,0.00029041,3]
[368527245,1751195488219,-753.94,0.00029041,3]
[368527246,1751195488228,-4179.4,0.00029041,3]
[368527247,1751195488238,-738.89,0.00029041,3]
[368527248,1751195488248,-490.0,0.00029041,3]
[368527249,1751195488257,-2082.18,0.00029041,3]
[368527250,1751195488267,-3115.11,0.00029041,3]
[368527251,1751195488276,-807.19,0.00029041,3]
[368527252,1751195488285,-1049.11,0.00029041,3]
[368527253,1751195488295,-740.57,0.00029041,3]
[368527254,1751195488305,-490.0,0.00029041,3]
[368527255,1751195488315,-490.0,0.00029041,3]
[368527256,1751195488325,-1044.97,0.00029041,3]
[368527257,1751195488337,-490.0,0.00029041,3]
[368527258,1751195488347,-1018.69,0.00029041,3]
[368527259,1751195488357,-1329.73,0.00029041,3]
[368527260,1751195488367,-664.26,0.00029041,3]
[368527261,1751195488377,-765.79,0.00029041,3]
[368527262,1751195488387,-1231.21,0.00029041,3]
[368527263,1751195488398,-5898.08,0.00029041,3]
[368527264,1751195488409,-1354.66,0.00029041,3]
[368527265,1751195488419,-801.57,0.00029041,3]
[368527266,1751195488430,-678.52,0.00029041,3]
[368527267,1751195488441,-490.0,0.00029041,3]
[368527268,1751195488451,-490.0,0.00029041,3]
[368527269,1751195488461,-728.11,0.00029041,3]
[368527270,1751195488471,-490.0,0.00029041,3]
[368527271,1751195488480,-490.0,0.00029041,3]
[368527272,1751195488490,-853.69,0.00029041,3]
[368527273,1751195488500,-2091.4,0.00029041,3]
[368527274,1751195488509,-1560.41,0.00029041,3]
[368527275,1751195488520,-490.0,0.00029041,3]
[368527276,1751195488529,-898.14,0.00029041,3]
[368527277,1751195488539,-490.0,0.00029041,3]
[368527278,1751195488548,-751.28,0.00029041,3]
[368527279,1751195488558,-490.0,0.00029041,3]
[368527280,1751195488567,-1923.3,0.00029041,3]
[368527281,1751195488576,-1248.49,0.00029041,3]
[368527282,1751195488587,-824.08,0.00029041,3]
[368527283,1751195488596,-490.0,0.00029041,3]
[368527284,1751195488606,-836.36,0.00029041,3]
[368527285,1751195488616,-2818.09,0.00029041,3]
[368527286,1751195488625,-2281.84,0.00029041,3]
[368527287,1751195488635,-1208.52,0.00029041,3]
[368527288,1751195488645,-1308.74,0.00029041,3]
[368527289,1751195488654,-812.38,0.00029041,3]
[368527290,1751195488663,-490.0,0.00029041,3]
[368527291,1751195488673,-965.91,0.00029041,3]
[368527292,1751195488683,-490.0,0.00029041,3]
[368527293,1751195488694,-1092.36,0.00029041,3]
[368527294,1751195488704,-2507.76,0.00029041,3]
[368527295,1751195488714,-490.0,0.00029041,3]
[368527296,1751195488725,-1392.28,0.00029041,3]
[368527297,1751195488736,-545.7,0.00029041,3]
[368527298,1751195488746,-756.84,0.00029041,3]
[368527299,1751195488756,-973.2,0.00029041,3]
[368527300,1751195488767,-490.0,0.00029041,3]
[368527301,1751195488776,-490.0,0.00029041,3]
[368527302,1751195488786,-1668.27,0.00029041,3]
[368527303,1751195488796,-6899.51,0.00029041,3]
[368527304,1751195488805,-875.0,0.00029041,3]
[368527305,1751195488815,-686.34,0.00029041,3]
[368527306,1751195488824,-490.0,0.00029041,3]
[368527307,1751195488834,-1310.27,0.00029041,3]
[368527308,1751195488843,-550.14,0.00029041,3]
[368527309,1751195488854,-1492.54,0.00029041,3]
[368527310,1751195488864,-678.08,0.00029041,3]
[368527311,1751195488874,-598.31,0.00029041,3]
[368527312,1751195488884,-678.33,0.00029041,3]
[368527313,1751195488894,-1285.64,0.00029041,3]
[368527314,1751195488905,-1183.52,0.00029041,3]
[368527315,1751195488914,-2084.42,0.00029041,3]
[368527316,1751195488923,-2071.23,0.00029041,3]
[368527317,1751195488933,-1111.98,0.00029041,3]
[368527318,1751195488943,-2149.28,0.00029041,3]
[368527319,1751195488952,-1189.09,0.00029041,3]
[368527320,1751195488962,-1343.62,0.00029041,3]
[368527321,1751195488971,-624.68,0.00029041,3]
[368527322,1751195488982,-1713.38,0.00029041,3]
[368527323,1751195488992,-728.39,0.00029041,3]
[368527324,1751195489002,-490.0,0.00029041,3]
[368527325,1751195489012,-490.0,0.00029041,3]
[368527326,1751195489023,-490.0,0.00029041,3]
[368527327,1751195489033,-1929.28,0.00029041,3]
[368527328,1751195489043,-716.65,0.00029041,3]
[368527329,1751195489052,-490.0,0.00029041,3]
[368527330,1751195489062,-1448.19,0.00029041,3]
[368527331,1751195489072,-490.0,0.00029041,3]
[368527332,1751195489082,-950.17,0.00029041,3]
[368527333,1751195489092,-490.0,0.00029041,3]
[368527334,1751195489102,-1415.52,0.00029041,3]
[368527335,1751195489111,-4228.03,0.00029041,3]
[368527336,1751195489122,-578.07,0.00029041,3]
[368527337,1751195489131,-2873.11,0.00029041,3]
[368527338,1751195489141,-1294.67,0.00029041,3]
[368527339,1751195489151,-2568.99,0.00029041,3]
[368527340,1751195489161,-490.0,0.00029041,3]
[368527341,1751195489171,-490.0,0.00029041,3]
[368527342,1751195489181,-490.0,0.00029041,3]
[368527343,1751195489191,-490.0,0.00029041,3]
[368527344,1751195489202,-1298.15,0.00029041,3]
[368527345,1751195489212,-3934.62,0.00029041,3]
[368527346,1751195489222,-871.69,0.00029041,3]
[368527347,1751195489231,-490.0,0.00029041,3]
[368527348,1751195489242,-490.0,0.00029041,3]
[368527349,1751195489252,-1156.17,0.00029041,3]
[368527350,1751195489262,-490.0,0.00029041,3]
[368527351,1751195489272,-490.0,0.00029041,3]
[368527352,1751195489282,-490.0,0.00029041,3]
[368527353,1751195489291,-1135.44,0.00029041,3]
[368527354,1751195489301,-490.0,0.00029041,3]
[368527355,1751195489310,-490.0,0.00029041,3]
[368527356,1751195489320,-5438.07,0.00029041,3]
[368527357,1751195489331,-3395.49,0.00029041,3]
[368527358,1751195489341,-2131.93,0.00029041,3]
[368527359,1751195489351,-490.0,0.00029041,3]
[368527360,1751195489360,-595.7,0.00029041,3]
[368527361,1751195489370,-490.0,0.00029041,3]
[368527362,1751195489379,-1160.67,0.00029041,3]
[368527363,1751195489388,-1082.12,0.00029041,3]
[368527364,1751195489398,-3297.43,0.00029041,3]
[368527365,1751195489408,-490.0,0.00029041,3]
[368527366,1751195489418,-1219.38,0.00029041,3]
[368527367,1751195489428,-1291.41,0.00029041,3]
[368527368,1751195489438,-490.0,0.00029041,3]
[368527369,1751195489447,-1351.77,0.00029041,3]
[368527370,1751195489456,-1046.99,0.00029041,3]
[368527371,1751195489466,-490.0,0.00029041,3]
[368527372,1751195489475,-874.34,0.00029041,3]
[368527373,1751195489485,-490.0,0.00029041,3]
[368527374,1751195489495,-490.0,0.00029041,3]
[368527375,1751195489504,-490.0,0.00029041,3]
[368527376,1751195489513,-1084.91,0.00029041,3]
[368527377,1751195489523,-1243.77,0.00029041,3]
[368527378,1751195489533,-2069.3,0.00029041,3]
[368527379,1751195489543,-523.8,0.00029041,3]
[368527380,1751195489552,-664.94,0.00029041,3]
[368527381,1751195489562,-490.0,0.00029041,3]
[368527382,1751195489571,-1431.47,0.00029041,3]
[368527383,1751195489581,-490.0,0.00029041,3]
[368527384,1751195489591,-1230.19,0.00029041,3]
[368527385,1751195489601,-6887.93,0.00029041,3]
[368527386,1751195489611,-1307.69,0.00029041,3]
[368527387,1751195489621,-2182.43,0.00029041,3]
[368527388,1751195489631,-836.9,0.00029041,3]
[368527389,1751195489642,-7977.88,0.00029041,3]
[368527390,1751195489652,-15438.68,0.00029041,3]
[368527391,1751195489851,-490.0,0.00029041,3]
[368527392,1751195489862,-1062.58,0.00029041,3]
[368527393,1751195489872,-946.94,0.00029041,3]
[368527394,1751195489881,-752.46,0.00029041,3]
[368527395,1751195489890,-1047.7,0.00029041,3]
[368527396,1751195489899,-951.95,0.00029041,3]
[368527397,1751195489911,-2249.11,0.00029041,3]
[368527398,1751195489920,-1419.39,0.00029041,3]
[368527399,1751195489931,-1046.27,0.00029041,3]
[368527400,1751195489940,-883.6,0.00029041,3]
[368527401,1751195489950,-490.0,0.00029041,3]
[368527402,1751195489959,-490.0,0.00029041,3]
[368527403,1751195489968,-1233.28,0.00029041,3]
[368527404,1751195489978,-546.5745491,0.00029041,3]
[368527405,1751195489988,-1053.68,0.00029041,3]
[368527406,1751195489997,-1876.95,0.00029041,3]
[368527407,1751195490007,-1437.9,0.00029041,3]
[368527408,1751195490017,-577.96,0.00029041,3]
[368527409,1751195490026,-2637.31,0.00029041,3]
[368527410,1751195490036,-858.76,0.00029041,3]
[368527411,1751195490045,-1212.63,0.00029041,3]
[368527412,1751195490054,-1172.02,0.00029041,3]
[368527413,1751195490065,-490.0,0.00029041,3]
[368527414,1751195490074,-939.2,0.00029041,3]
[368527415,1751195490084,-1487.73,0.00029041,3]
[368527416,1751195490094,-1475.83,0.00029041,3]
[368527417,1751195490103,-490.0,0.00029041,3]
[368527418,1751195490113,-513.84,0.00029041,3]
[368527419,1751195490122,-581.65,0.00029041,3]
[368527420,1751195490131,-1624.17,0.00029041,3]
[368527421,1751195490141,-490.0,0.00029041,3]
[368527422,1751195490151,-1094.1,0.00029041,3]
[368527423,1751195490160,-1150.15,0.00029041,3]
[368527424,1751195490169,-934.06,0.00029041,3]
[368527425,1751195490179,-3721.52,0.00029041,3]
[368527426,1751195490188,-840.28,0.00029041,3]
[368527427,1751195490197,-2369.11,0.00029041,3]
[368527428,1751195490208,-1892.33,0.00029041,3]
[368527429,1751195490218,-3862.52,0.00029041,3]
[368527430,1751195490228,-943.0,0.00029041,3]
[368527431,1751195490238,-1500.56,0.00029041,3]
[368527432,1751195490247,-1722.76,0.00029041,3]
[368527433,1751195490256,-490.0,0.00029041,3]
[368527434,1751195490265,-1385.63,0.00029041,3]
[368527435,1751195490274,-690.18,0.00029041,3]
[368527436,1751195490283,-1738.51,0.00029041,3]
[368527437,1751195490293,-490.0,0.00029041,3]
[368527438,1751195490302,-893.12,0.00029041,3]
[368527439,1751195490311,-490.0,0.00029041,3]
[368527440,1751195490320,-490.0,0.00029041,3]
[368527441,1751195490333,-3272.52,0.00029041,3]
[368527442,1751195490343,-490.0,0.00029041,3]
[368527443,1751195490351,-490.0,0.00029041,3]
[368527444,1751195490361,-884.39,0.00029041,3]
[368527445,1751195490370,-1232.52,0.00029041,3]
[368527446,1751195490379,-490.0,0.00029041,3]
[368527447,1751195490388,-2520.33,0.00029041,3]
[368527448,1751195490398,-490.0,0.00029041,3]
[368527449,1751195490407,-2639.97,0.00029041,3]
[368527450,1751195490417,-1073.7,0.00029041,3]
[368527451,1751195490426,-490.0,0.00029041,3]
[368527452,1751195490436,-8290.98,0.00029041,3]
[368527453,1751195490445,-1075.68,0.00029041,3]
[368527454,1751195490455,-4185.34,0.00029041,3]
[368527455,1751195490464,-490.0,0.00029041,3]
[368527456,1751195490473,-490.0,0.00029041,3]
[368527457,1751195490482,-490.0,0.00029041,3]
[368527458,1751195490491,-506.8,0.00029041,3]
[368527459,1751195490500,-500.0,0.00029068,5]
[368527460,1751195490511,-649.0400951,0.00029099,2]
[368527461,1751195490520,-822.39111784,0.00029245,20]
[368527462,1751195490529,-490.0,0.00029314,3]
[368527463,1751195490538,-273.20070707,0.00029314,3]
[368527464,1751195490547,-490.0,0.00029314,3]
[368527465,1751195490556,-490.0,0.00029314,3]
[368527466,1751195490566,-998.55,0.00029314,3]
[368527467,1751195490575,-2019.21,0.00029314,3]
[368527468,1751195490584,-1258.14,0.00029314,3]
[368527469,1751195490593,-522.39,0.00029314,3]
[368527470,1751195490602,-490.0,0.00029314,3]
[368527471,1751195490612,-714.21,0.00029314,3]
[368527472,1751195490622,-3605.69,0.00029314,3]
[368527473,1751195490631,-5060.72,0.00029314,3]
[368527474,1751195490641,-1095.63,0.00029314,3]
[368527475,1751195490650,-1236.33,0.00029314,3]
[368527476,1751195490660,-10700.98,0.00029314,3]
[368527477,1751195490669,-1100.76,0.00029314,3]
[368527478,1751195490679,-1042.29,0.00029314,3]
[368527479,1751195490688,-1725.87,0.00029314,3]
[368527480,1751195490697,-1687.85,0.00029314,3]
[368527481,1751195490707,-2774.34,0.00029314,3]
[368527482,1751195490716,-490.0,0.00029314,3]
[368527483,1751195490726,-490.0,0.00029315,3]
[368527484,1751195490735,-490.0,0.00029315,3]
[368527485,1751195490745,-490.0,0.00029315,3]
[368527486,1751195490754,-490.0,0.00029315,3]
[368527487,1751195490763,-490.0,0.00029315,3]
[368527488,1751195490772,-572.57,0.00029315,3]
[368527489,1751195490781,-490.0,0.00029315,3]
[368527490,1751195490790,-828.1,0.00029315,3]
[368527491,1751195490799,-490.0,0.00029315,3]
[368527492,1751195490809,-490.0,0.00029315,3]
[368527493,1751195490818,-490.0,0.00029315,3]
[368527494,1751195490827,-490.0,0.00029315,3]
[368527495,1751195490837,-490.0,0.00029315,3]
[368527496,1751195490847,-490.0,0.00029315,3]
[368527497,1751195490857,-442.83366069,0.00029315,3]
[368527498,1751195490866,-490.0,0.00029315,3]
[368527499,1751195490875,-490.0,0.00029315,3]
[368527500,1751195490885,-490.0,0.00029315,3]
[368527501,1751195490895,-490.0,0.00029315,3]
[368527502,1751195490904,-490.0,0.00029315,3]
[368527503,1751195490913,-490.0,0.00029315,3]
[368527504,1751195490922,-736.21,0.00029315,3]
[368527505,1751195490931,-490.0,0.00029315,3]
[368527506,1751195490941,-490.0,0.00029315,3]
[368527507,1751195490950,-490.0,0.00029315,3]
[368527508,1751195490960,-490.0,0.00029315,3]
[368527509,1751195490969,-490.0,0.00029315,3]
[368527510,1751195490978,-498.5,0.00029315,3]
[368527511,1751195490988,-490.0,0.00029315,3]
[368527512,1751195490998,-490.0,0.00029315,3]
[368527513,1751195491008,-490.0,0.00029315,3]
[368527514,1751195491018,-490.0,0.00029315,3]
[368527515,1751195491028,-490.0,0.00029315,3]
[368527516,1751195491038,-490.0,0.00029315,3]
[368527517,1751195491047,-490.0,0.00029315,3]
[368527518,1751195491056,-490.0,0.00029315,3]
[368527519,1751195491065,-490.0,0.00029315,3]
[368527520,1751195491075,-490.0,0.00029315,3]
[368527521,1751195491084,-490.0,0.00029315,3]
[368527522,1751195491094,-490.0,0.00029315,3]
[368527523,1751195491103,-490.0,0.00029315,3]
[368527524,1751195491113,-490.0,0.00029315,3]
[368527525,1751195491122,-490.0,0.00029315,3]
[368527526,1751195491132,-490.0,0.00029315,3]
[368527527,1751195491141,-490.0,0.00029315,3]